bitfinex/quotes_BTCUSD_20251012
["timestamp","ask_amount","ask_price","bid_price","bid_amount"]
[1760283288259,0.00824055,113010.0,113000.0,0.17699115]
[1760283288462,0.21687472,113020.0,113000.0,0.04622]
[1760283288641,0.17697548,113010.0,112990.0,0.31448634]
[1760283288784,0.00824055,113010.0,112990.0,0.36914433]
[1760283288988,0.19512548,113010.0,112990.0,0.27788433]
[1760283289193,0.17700681,112990.0,112970.0,0.04256]
[1760283289426,0.20869248,112980.0,112970.0,0.0427103]
[1760283289625,0.25819248,112980.0,112970.0,0.0427103]
[1760283289827,0.20918248,112980.0,112970.0,0.0427103]
[1760283290076,0.01301,113000.0,112970.0,0.31493035]
[1760283290253,0.01301,113000.0,112990.0,0.17700681]
[1760283290479,0.19000115,113000.0,112980.0,0.25339438]
[1760283290695,0.17710085,112930.0,112920.0,0.1224161]
[1760283290898,0.20851085,112930.0,112920.0,0.07177389]
[1760283291254,0.17708517,112940.0,112920.0,0.13763027]
[1760283291255,0.1770868,112940.0,112920.0,0.13763027]
[1760283291436,0.1770868,112940.0,112920.0,0.17465417]
[1760283291641,0.52592872,112950.0,112920.0,0.3517705]
[1760283291860,0.51708517,112940.0,112930.0,0.04622]
[1760283292049,0.17710085,112930.0,112920.0,0.35176912]
[1760283292250,0.17710085,112930.0,112920.0,0.26051071]
[1760283292868,0.17710085,112930.0,112920.0,0.08339417]
[1760283293355,0.17710085,112930.0,112920.0,0.03717417]
[1760283293804,0.53548517,112940.0,112920.0,0.17726681]
[1760283294257,0.17710085,112930.0,112920.0,0.00015027]
[1760283294513,0.17710085,112930.0,112920.0,0.17726681]
[1760283294728,0.58498517,112940.0,112920.0,0.17726681]
[1760283294950,0.58498517,112940.0,112920.0,0.00015027]
[1760283294951,0.17710085,112930.0,112920.0,0.00015027]
[1760283295162,0.22709085,112930.0,112920.0,0.00015027]
[1760283295401,1.48896985,112930.0,112920.0,0.00015027]
[1760283295618,0.56709085,112930.0,112920.0,0.00015027]
[1760283296050,0.51759085,112930.0,112920.0,0.00015027]
[1760283296487,1.48847985,112930.0,112920.0,0.00015027]
[1760283298712,1.48847985,112930.0,112900.0,0.0004]
[1760283298713,1.43901122,112910.0,112900.0,0.0004]
[1760283298962,0.54854222,112910.0,112900.0,0.0004]
[1760283299159,0.32414523,112910.0,112900.0,0.0004]
[1760283299284,0.25805222,112910.0,112900.0,0.0004]
[1760283299484,0.03141,112910.0,112900.0,0.0004]
[1760283299692,0.20854222,112910.0,112900.0,0.0004]
[1760283299887,0.19012654,112920.0,112900.0,0.17754791]
[1760283300136,0.26589589,112930.0,112920.0,0.17711654]
[1760283300137,0.03141,112930.0,112920.0,0.17711654]
[1760283300338,0.03155997,112930.0,112920.0,0.17711654]
[1760283300516,0.20866082,112930.0,112910.0,0.31395222]
[1760283300725,0.20866082,112930.0,112920.0,0.17711654]
[1760283300980,0.20866082,112930.0,112910.0,0.17713222]
[1760283300981,0.20915082,112930.0,112910.0,0.17713222]
[1760283301181,0.20915082,112930.0,112920.0,0.00286827]
[1760283301381,0.27104082,112930.0,112920.0,0.00286827]
[1760283301787,0.25816082,112930.0,112920.0,0.00286827]
[1760283302003,1.18003982,112930.0,112920.0,0.00286827]
[1760283302255,1.52003982,112930.0,112920.0,0.00286827]
[1760283302615,1.52003982,112930.0,112870.0,0.30400806]
[1760283302616,0.34,112890.0,112870.0,0.07162362]
[1760283302808,0.5301893,112880.0,112870.0,0.07162362]
[1760283303017,0.5796993,112880.0,112870.0,0.07162362]
[1760283303193,0.17720716,112870.0,112850.0,0.18648622]
[1760283303388,0.0184,112860.0,112850.0,0.23553781]
[1760283303864,0.0184,112860.0,112850.0,0.23603797]
[1760283304409,0.195595,112870.0,112860.0,0.17720375]
[1760283304788,0.35301,112880.0,112870.0,0.177195]
[1760283304943,0.5301893,112880.0,112870.0,0.177195]
[1760283305357,0.5301893,112880.0,112860.0,0.22353375]
[1760283305539,0.5303793,112880.0,112870.0,0.177195]
[1760283305737,0.5303793,112880.0,112860.0,0.28317292]
[1760283305738,0.5303793,112880.0,112860.0,0.22353375]
[1760283305918,0.01927,112870.0,112860.0,0.17720375]
[1760283306295,0.197145,112870.0,112850.0,0.00090016]
[1760283306536,0.1893507,112860.0,112850.0,0.00090016]
[1760283306708,0.2381807,112860.0,112850.0,0.00090016]
[1760283306910,0.2393407,112860.0,112850.0,0.00090016]
[1760283307578,0.5793407,112860.0,112850.0,0.00090016]
[1760283307813,1.5012197,112860.0,112830.0,0.14256]
[1760283308024,1.13023111,112840.0,112830.0,0.1]
[1760283308235,1.18053111,112840.0,112830.0,0.1]
[1760283308673,1.18053111,112840.0,112830.0,0.10516816]
[1760283308850,1.52053111,112840.0,112830.0,0.10516816]
[1760283309839,0.08042,112840.0,112830.0,0.10516816]
[1760283310135,0.59865211,112840.0,112830.0,0.10516816]
[1760283310369,1.52053111,112840.0,112830.0,0.10516816]
[1760283310584,1.43913682,112830.0,112820.0,1e-08]
[1760283310907,0.1773364,112780.0,112770.0,0.11458362]
[1760283311032,0.20671311,112780.0,112770.0,0.11458362]
[1760283311224,0.20671311,112780.0,112770.0,0.04296]
[1760283311225,0.25621311,112780.0,112770.0,0.04296]
[1760283311425,0.59591311,112780.0,112770.0,0.0004]
[1760283311920,0.59591311,112780.0,112750.0,0.0125]
[1760283311921,0.51736786,112760.0,112750.0,0.0125]
[1760283312117,1.46856686,112760.0,112750.0,0.0121]
[1760283312246,1.43926259,112750.0,112730.0,8e-05]
[1760283312452,0.54878244,112740.0,112730.0,8e-05]
[1760283312857,0.37138312,112740.0,112730.0,8e-05]
[1760283313057,0.03138312,112740.0,112730.0,8e-05]
[1760283313465,0.01118312,112740.0,112730.0,8e-05]
[1760283313666,0.01168205,112740.0,112730.0,8e-05]
[1760283313869,0.01168205,112740.0,112730.0,0.17749506]
[1760283314090,0.01168205,112740.0,112730.0,0.18956075]
[1760283314091,0.06118205,112740.0,112730.0,0.18956075]
[1760283314295,0.01168205,112740.0,112730.0,0.17749506]
[1760283314494,0.01168205,112740.0,112730.0,0.26798506]
[1760283314695,0.01168205,112740.0,112730.0,0.09057]
[1760283314971,0.01168205,112740.0,112730.0,0.28042245]
[1760283315178,0.01168205,112740.0,112730.0,0.31376998]
[1760283316009,0.01168205,112740.0,112730.0,0.34392188]
[1760283316196,0.03840961,112780.0,112770.0,0.17735213]
[1760283316393,0.03840961,112780.0,112730.0,0.63813696]
[1760283316394,0.17739932,112740.0,112730.0,8e-05]
[1760283316601,0.17739932,112740.0,112700.0,0.01437848]
[1760283316602,0.17744654,112710.0,112700.0,0.01437848]
[1760283316804,0.17744654,112710.0,112700.0,0.01487741]
[1760283316805,0.25161654,112710.0,112700.0,0.01487741]
[1760283317117,1.51349554,112710.0,112700.0,0.11133363]
[1760283317353,1.51349554,112710.0,112700.0,1e-08]
[1760283317568,1.43935703,112690.0,112680.0,0.00010934]
[1760283317802,1.43935703,112690.0,112660.0,0.001]
[1760283317803,0.17749603,112680.0,112660.0,0.001]
[1760283318014,0.09002814,112690.0,112680.0,0.17749378]
[1760283318212,0.09002814,112690.0,112680.0,0.26798378]
[1760283318419,0.09002814,112690.0,112680.0,0.00115112]
[1760283318657,0.09002814,112690.0,112680.0,0.1786449]
[1760283318871,0.02417,112740.0,112710.0,0.18630825]
[1760283319083,0.23500757,112760.0,112730.0,0.17741506]
[1760283319084,0.04501,112750.0,112730.0,0.17741506]
[1760283319291,0.04501,112750.0,112730.0,0.17741403]
[1760283319516,0.04501,112750.0,112720.0,0.1862998]
[1760283319767,0.08952952,112730.0,112720.0,0.18630097]
[1760283319987,0.08952952,112730.0,112720.0,0.35327287]
[1760283320207,0.921879,112780.0,112770.0,0.17735117]
[1760283320449,0.23570733,112780.0,112730.0,0.17736786]
[1760283320680,0.09451,112770.0,112730.0,0.0301519]
[1760283320900,0.09451,112770.0,112730.0,0.17740611]
[1760283320901,0.0495,112760.0,112730.0,0.17740611]
[1760283321130,0.04501,112770.0,112750.0,0.17738359]
[1760283321349,1.09921557,112780.0,112750.0,0.17753353]
[1760283321561,0.27186346,112770.0,112750.0,0.17753353]
[1760283321807,0.04501,112770.0,112750.0,0.17753353]
[1760283322033,0.23540876,112810.0,112780.0,0.1773364]
[1760283322034,0.25990877,112810.0,112780.0,0.1773364]
[1760283322280,0.02417,112810.0,112790.0,0.17732068]
[1760283322485,0.17732626,112790.0,112760.0,0.22877653]
[1760283322688,0.21069229,112790.0,112770.0,0.17734723]
[1760283322894,0.22684362,112780.0,112760.0,0.0426]
[1760283323101,0.21069058,112790.0,112760.0,0.21996444]
[1760283323314,0.921879,112800.0,112780.0,0.17733148]
[1760283323579,0.02417,112810.0,112790.0,0.17732068]
[1760283323760,0.921879,112820.0,112800.0,0.17729136]
[1760283323962,1.0991528,112820.0,112800.0,0.17729136]
[1760283324166,0.04501,112830.0,112810.0,0.17728924]
[1760283324378,0.2356627,112840.0,112810.0,0.17728924]
[1760283324379,0.17724752,112840.0,112810.0,0.17728924]
[1760283324587,0.17724499,112840.0,112820.0,0.17727341]
[1760283324806,0.0495,112830.0,112790.0,0.04633]
[1760283325023,0.17732137,112790.0,112770.0,0.07162362]
[1760283325242,0.1773364,112780.0,112760.0,0.0426]
[1760283325452,0.17730588,112800.0,112770.0,0.01773521]
[1760283325683,0.921879,112800.0,112770.0,0.31414326]
[1760283325887,0.03303367,112820.0,112780.0,0.2766926]
[1760283326109,0.17729864,112810.0,112790.0,0.17731912]
[1760283326317,0.00049924,112820.0,112810.0,0.17728924]
[1760283326724,0.00049924,112820.0,112810.0,0.34426114]
[1760283326934,0.00049924,112820.0,112810.0,0.68426114]
[1760283327385,0.00049924,112820.0,112810.0,0.34426114]
[1760283327777,8.7e-05,112860.0,112840.0,0.20739401]
[1760283327979,8.7e-05,112860.0,112840.0,0.09063994]
[1760283328191,0.17730157,112860.0,112850.0,0.04234742]
[1760283328399,0.17730157,112860.0,112840.0,0.00014994]
[1760283328609,0.1772264,112850.0,112840.0,0.00014994]
[1760283328811,8.7e-05,112860.0,112850.0,0.1772264]
[1760283329018,8.7e-05,112860.0,112850.0,0.3441983]
[1760283329652,0.01071461,112880.0,112870.0,0.2073469]
[1760283329858,0.01071461,112880.0,112870.0,0.2565769]
[1760283330076,0.01894424,112880.0,112850.0,0.04633]
[1760283330286,0.177195,112870.0,112850.0,0.22355446]
[1760283330497,0.177195,112870.0,112840.0,0.13481994]
[1760283330498,0.1772107,112860.0,112840.0,0.13481994]
[1760283330700,0.18605475,112870.0,112850.0,0.2073783]
[1760283330907,0.19675287,112880.0,112850.0,0.3486783]
[1760283331188,0.19675287,112880.0,112860.0,0.26927997]
[1760283331359,0.01071461,112880.0,112870.0,0.21923491]
[1760283331566,0.01071461,112880.0,112870.0,0.2994169]
[1760283332060,0.0082313,112910.0,112900.0,0.20729981]
[1760283332303,0.00885504,112930.0,112890.0,0.32730868]
[1760283332578,0.17711755,112920.0,112900.0,0.20729845]
[1760283332802,0.17711755,112920.0,112900.0,0.20729981]
[1760283333261,0.03169733,112950.0,112930.0,0.17709679]
[1760283333482,0.00014988,112950.0,112930.0,0.17709679]
[1760283333699,0.00014988,112950.0,112920.0,0.0727519]
[1760283333913,0.17708518,112940.0,112920.0,0.0426]
[1760283334123,0.17710085,112930.0,112920.0,0.0426]
[1760283334543,0.17708518,112940.0,112920.0,0.21971641]
[1760283334740,0.17710085,112930.0,112920.0,0.0426]
[1760283335362,1.09897985,112930.0,112920.0,0.0426]
[1760283335571,1.01762885,112930.0,112920.0,0.0426]
[1760283335990,0.17716361,112890.0,112880.0,0.07162362]
[1760283336604,0.1771793,112880.0,112870.0,0.0426]
[1760283337021,0.1771793,112880.0,112870.0,0.219795]
[1760283337236,1.3577073,112880.0,112870.0,0.00014994]
[1760283337858,0.17724211,112840.0,112830.0,0.07162362]
[1760283338063,0.17739182,112840.0,112830.0,0.07162362]
[1760283338278,0.17727353,112820.0,112810.0,0.11418362]
[1760283338640,0.17727353,112820.0,112810.0,0.04256]
[1760283339487,0.18799055,112830.0,112810.0,0.21984924]
[1760283339736,0.17727353,112820.0,112810.0,0.04256]
[1760283341312,1.01780153,112820.0,112810.0,0.04256]
[1760283341540,0.17731737,112800.0,112780.0,0.25782532]
[1760283341941,0.17732068,112790.0,112770.0,0.1773224]
[1760283342583,0.17732068,112790.0,112760.0,0.30699662]
[1760283342584,0.17735213,112770.0,112750.0,0.09183]
[1760283342763,0.17736786,112760.0,112750.0,0.0426]
[1760283342968,0.17735213,112770.0,112750.0,0.21998359]
[1760283343366,0.18620322,112780.0,112760.0,0.17736786]
[1760283343823,0.00901563,112790.0,112770.0,0.28671767]
[1760283343948,0.0001496,112790.0,112760.0,0.18623625]
[1760283344145,0.0001496,112790.0,112780.0,0.1773364]
[1760283344597,0.17747137,112790.0,112770.0,0.32129078]
[1760283344848,0.0001496,112790.0,112780.0,0.1773364]
[1760283345066,0.0001496,112790.0,112780.0,0.3062183]
[1760283345264,0.00897456,112860.0,112840.0,0.17724211]
[1760283345386,0.00912485,112860.0,112850.0,0.36275156]
[1760283345591,0.00912485,112860.0,112850.0,0.3513183]
[1760283345789,0.00015029,112860.0,112850.0,0.3513183]
[1760283346042,0.00015029,112860.0,112850.0,0.2073783]
[1760283346240,0.09644029,112860.0,112830.0,0.21982855]
[1760283346447,0.02877,112850.0,112840.0,0.17724021]
[1760283346624,0.3022864,112850.0,112830.0,0.21985586]
[1760283346828,0.02877,112850.0,112840.0,0.17724211]
[1760283347028,0.00015029,112860.0,112850.0,0.1772264]
[1760283347839,0.17736099,112860.0,112840.0,0.17724211]
[1760283348139,0.00015029,112860.0,112850.0,0.1772264]
[1760283348335,0.17736099,112860.0,112850.0,0.1772264]
[1760283348611,0.00015029,112860.0,112850.0,0.3513183]
[1760283348817,0.00015029,112860.0,112850.0,0.1772264]
[1760283349639,0.00015029,112860.0,112850.0,0.3211664]
[1760283349856,0.00015029,112860.0,112850.0,0.3513183]
[1760283350063,0.00015029,112860.0,112850.0,0.3211664]
[1760283350273,0.00015029,112860.0,112850.0,0.1772264]
[1760283350686,0.17736099,112860.0,112840.0,0.17723698]
[1760283350888,0.1772264,112850.0,112830.0,0.27392875]
[1760283351024,0.17724211,112840.0,112830.0,0.0426]
[1760283351640,0.17728924,112810.0,112800.0,0.07162362]
[1760283351841,0.17728718,112820.0,112800.0,0.24892773]
[1760283352038,0.17728924,112810.0,112790.0,0.17732029]
[1760283352465,0.17728924,112810.0,112780.0,0.07162362]
[1760283352466,0.17732068,112790.0,112780.0,0.07162362]
[1760283352674,0.17732068,112790.0,112760.0,0.34556922]
[1760283352675,0.17733706,112780.0,112760.0,0.0426]
[1760283352900,0.22034671,112790.0,112760.0,0.2204671]
[1760283353189,0.1773364,112780.0,112760.0,0.2204671]
[1760283353398,0.2268364,112780.0,112760.0,0.2204671]
[1760283353602,0.0495,112780.0,112760.0,0.2204671]
[1760283353813,0.22034671,112790.0,112760.0,0.2204671]
[1760283354021,0.03416,112790.0,112770.0,0.17735132]
[1760283354229,0.26098172,112790.0,112760.0,0.04309924]
[1760283354434,0.17735213,112770.0,112760.0,0.04309924]
[1760283354657,0.19976213,112770.0,112760.0,0.04309924]
[1760283354899,0.02241,112770.0,112760.0,0.2204671]
[1760283355127,0.03416,112790.0,112780.0,0.1773364]
[1760283355363,1.61037835,112790.0,112760.0,0.04309924]
[1760283355581,0.26985035,112790.0,112760.0,0.22046532]
[1760283355799,0.17735213,112770.0,112760.0,0.04309924]
[1760283356056,0.56685213,112770.0,112760.0,0.00049924]
[1760283356261,1.40738013,112770.0,112760.0,0.00049924]
[1760283356879,0.1773364,112780.0,112760.0,0.00049924]
[1760283357090,1.40738013,112770.0,112760.0,0.00049924]
[1760283357297,1.39750013,112770.0,112760.0,0.00049924]
[1760283357503,1.39750013,112770.0,112760.0,1e-08]
[1760283357504,1.44819504,112770.0,112760.0,1e-08]
[1760283357774,1.56358171,112770.0,112760.0,1e-08]
[1760283357969,0.51739932,112740.0,112730.0,0.07162362]
[1760283358185,1.15038659,112740.0,112730.0,0.07177322]
[1760283358385,0.840528,112740.0,112730.0,0.07177322]
[1760283358550,0.840528,112740.0,112730.0,0.0001496]
[1760283358551,1.01792732,112740.0,112730.0,0.0001496]
[1760283359502,0.12689932,112740.0,112730.0,0.0001496]
[1760283359706,0.18991435,112750.0,112730.0,0.0001496]
[1760283359911,0.01253,112750.0,112740.0,0.17739932]
[1760283360119,0.17739932,112740.0,112730.0,0.0001496]
[1760283360324,1.06742732,112740.0,112730.0,0.0001496]
[1760283360530,0.22689932,112740.0,112730.0,0.0001496]
[1760283360740,0.17739932,112740.0,112730.0,0.0001496]
[1760283360950,0.01253,112750.0,112730.0,0.17756292]
[1760283361156,0.01253,112750.0,112730.0,0.0001496]
[1760283361359,0.01253,112750.0,112730.0,0.17756451]
[1760283361640,0.17738467,112750.0,112730.0,0.17756451]
[1760283361848,0.220353,112790.0,112760.0,0.17736271]
[1760283362053,0.840528,112780.0,112750.0,0.18622387]
[1760283362262,0.26984676,112790.0,112760.0,0.17736678]
[1760283362467,0.1773364,112780.0,112770.0,0.17735213]
[1760283362678,0.1773364,112780.0,112760.0,0.17736678]
[1760283362888,0.2001022,112770.0,112730.0,0.30720928]
[1760283363094,0.2584698,112770.0,112750.0,0.17738348]
[1760283363298,0.17736786,112760.0,112740.0,0.17739652]
[1760283363526,0.17738377,112750.0,112730.0,0.07162362]
[1760283363736,0.17738377,112750.0,112740.0,0.0001496]
[1760283363737,0.18991377,112750.0,112740.0,0.0001496]
[1760283364155,0.23941377,112750.0,112740.0,0.0001496]
[1760283364564,1.07994177,112750.0,112740.0,0.0001496]
[1760283364773,0.23941377,112750.0,112740.0,0.0001496]
[1760283365397,1.07994177,112750.0,112740.0,0.0001496]
[1760283366050,0.902558,112750.0,112740.0,0.17754892]
[1760283366271,0.840528,112760.0,112750.0,0.17737434]
[1760283366476,0.75203969,112790.0,112770.0,0.17735026]
[1760283366686,0.1773364,112780.0,112760.0,0.17736662]
[1760283366891,0.0082078,112780.0,112770.0,0.17735213]
[1760283367102,0.17733644,112780.0,112760.0,0.17736662]
[1760283367308,0.0811176,112770.0,112740.0,0.0001496]
[1760283367533,0.25849863,112770.0,112750.0,0.17738359]
[1760283367822,0.17736786,112760.0,112740.0,0.17754302]
[1760283368035,0.840528,112780.0,112760.0,0.17736786]
[1760283368270,0.0811176,112770.0,112740.0,0.0001496]
[1760283368499,0.17736789,112760.0,112740.0,0.17754738]
[1760283368726,0.17736789,112760.0,112740.0,0.17754892]
[1760283368727,0.853058,112750.0,112740.0,0.17754892]
[1760283368960,0.17737184,112760.0,112740.0,0.17754892]
[1760283369243,0.22687184,112760.0,112740.0,0.17754892]
[1760283369480,0.36275,112770.0,112760.0,0.17736786]
[1760283369704,0.39836682,112780.0,112770.0,0.17733837]
[1760283369705,0.01890332,112780.0,112770.0,0.17733837]
[1760283369973,1.01783629,112800.0,112780.0,0.17732305]
[1760283370210,0.20441031,112800.0,112790.0,0.17732068]
[1760283370443,0.008204,112800.0,112790.0,0.17732068]
[1760283370650,0.04601,112810.0,112800.0,0.17730496]
[1760283370822,0.00820245,112810.0,112800.0,0.17730496]
[1760283371032,0.05790814,112830.0,112820.0,0.17727353]
[1760283371253,0.20892025,112840.0,112820.0,0.17727353]
[1760283371496,0.17774351,112840.0,112830.0,0.17725782]
[1760283371747,0.17774351,112840.0,112820.0,0.17727353]
[1760283371989,0.17774351,112840.0,112800.0,0.3327402]
[1760283371990,1.02669072,112820.0,112790.0,0.07162362]
[1760283372226,0.17730496,112800.0,112790.0,0.2489425]
[1760283372445,0.17730496,112800.0,112790.0,0.07162362]
[1760283373017,0.17730496,112800.0,112790.0,0.17732064]
[1760283373250,0.17730496,112800.0,112750.0,0.29823408]
[1760283373251,0.17732068,112790.0,112750.0,0.12979279]
[1760283373480,0.17732068,112790.0,112770.0,0.24897526]
[1760283373670,0.04512975,112810.0,112790.0,0.17730637]
[1760283373941,0.840528,112820.0,112810.0,0.17728924]
[1760283374189,0.01889975,112820.0,112810.0,0.17728382]
[1760283374428,0.02487,112840.0,112820.0,0.17726025]
[1760283374689,0.21305938,112850.0,112820.0,0.18612392]
[1760283374956,0.17729396,112810.0,112770.0,0.23546446]
[1760283375191,0.20352396,112810.0,112800.0,0.07162362]
[1760283375461,0.177306,112800.0,112780.0,0.25782592]
[1760283375706,0.55828438,112840.0,112800.0,0.07162362]
[1760283375707,0.03167814,112840.0,112800.0,0.07162362]
[1760283375975,0.26366755,112870.0,112840.0,0.17724211]
[1760283375976,0.21092829,112870.0,112840.0,0.17724211]
[1760283376219,0.21092829,112870.0,112830.0,0.23542071]
[1760283376220,0.18605605,112870.0,112830.0,0.23542071]
[1760283376460,0.17721142,112860.0,112840.0,0.17723905]
[1760283376726,0.0005014,112860.0,112840.0,0.17724003]
[1760283377246,0.17772359,112860.0,112830.0,0.22655311]
[1760283377479,0.0005014,112860.0,112830.0,0.17725452]
[1760283377720,0.17771463,112860.0,112840.0,0.17724145]
[1760283378190,0.17771463,112860.0,112850.0,0.1772264]
[1760283378426,0.1777121,112860.0,112850.0,0.1772264]
[1760283378851,0.1777121,112860.0,112840.0,0.17724145]
[1760283379359,0.0005014,112860.0,112850.0,0.1772264]
[1760283379810,0.0005014,112860.0,112850.0,0.3539483]
[1760283380429,0.0005014,112860.0,112850.0,0.1772264]
[1760283380668,0.0005014,112860.0,112820.0,0.33267745]
[1760283380868,0.1777278,112860.0,112840.0,0.17723863]
[1760283381020,0.0005014,112860.0,112840.0,0.27450863]
[1760283381227,0.0005014,112860.0,112850.0,0.1772264]
[1760283383898,0.0005014,112860.0,112850.0,0.2265264]
[1760283384023,0.1777121,112860.0,112850.0,0.2265264]
[1760283384222,0.1772264,112850.0,112830.0,0.09727]
[1760283384511,0.0082472,112850.0,112840.0,0.17724211]
[1760283384686,0.1772264,112850.0,112830.0,0.1772574]
[1760283384888,0.1854736,112850.0,112840.0,0.17724211]
[1760283385310,0.0082472,112850.0,112840.0,0.27451211]
[1760283385531,0.0005014,112860.0,112850.0,0.2073783]
[1760283385729,0.07926355,112860.0,112850.0,0.3539483]
[1760283385959,0.04042674,112860.0,112850.0,0.3539483]
[1760283386541,0.0087486,112860.0,112850.0,0.3539483]
[1760283386711,0.0005014,112860.0,112850.0,0.3539483]
[1760283387959,0.0005014,112860.0,112850.0,0.0301519]
[1760283388206,0.84938932,112850.0,112820.0,0.17726504]
[1760283388401,0.17724298,112840.0,112820.0,0.24888866]
[1760283388600,0.18610508,112840.0,112810.0,0.22658703]
[1760283388834,0.18610508,112840.0,112820.0,0.17727353]
[1760283389039,0.17725782,112830.0,112820.0,0.17727353]
[1760283389256,0.17727353,112820.0,112810.0,0.17728924]
[1760283389494,0.17728924,112810.0,112800.0,0.12092362]
[1760283389708,0.17728924,112810.0,112790.0,0.0919]
[1760283389917,0.17728924,112810.0,112790.0,0.26920785]
[1760283390147,0.18618671,112790.0,112740.0,0.09999999]
[1760283390379,0.17736939,112760.0,112730.0,0.23510494]
[1760283390665,0.17736939,112760.0,112740.0,0.0001496]
[1760283390666,0.17738801,112750.0,112740.0,0.0001496]
[1760283391441,1.01791601,112750.0,112740.0,0.0001496]
[1760283392088,0.840528,112770.0,112740.0,0.27580892]
[1760283392286,0.840528,112780.0,112750.0,0.33596171]
[1760283392535,1.01786671,112780.0,112760.0,0.01077102]
[1760283392772,0.17735213,112770.0,112760.0,0.01773678]
[1760283392974,0.17735213,112770.0,112750.0,0.18625191]
[1760283393174,0.17735213,112770.0,112740.0,0.18641888]
[1760283393175,0.17736932,112760.0,112740.0,0.0001496]
[1760283393384,1.01791159,112750.0,112740.0,0.0001496]
[1760283393583,0.17738359,112750.0,112740.0,0.0001496]
[1760283396605,1.52020159,112750.0,112740.0,0.0001496]
[1760283396808,1.02020159,112750.0,112740.0,0.0001496]
[1760283397011,1.36020159,112750.0,112740.0,0.0001496]
[1760283397396,1.37923565,112750.0,112740.0,0.0001496]
[1760283398369,1.36020159,112750.0,112740.0,0.0001496]
[1760283401273,0.51967359,112750.0,112740.0,0.0001496]
[1760283401478,1.36020159,112750.0,112740.0,0.0001496]
[1760283401917,1.36020159,112750.0,112740.0,1e-08]
[1760283402120,1.48520157,112750.0,112740.0,1e-08]
[1760283402320,1.5042033,112750.0,112740.0,1e-08]
[1760283402897,1.5042033,112750.0,112700.0,0.08234678]
[1760283402898,0.17744654,112710.0,112700.0,0.08234678]
[1760283403099,1.35812465,112710.0,112700.0,0.08234678]
[1760283403325,1.36041465,112710.0,112700.0,0.01072316]
[1760283404439,0.51988665,112710.0,112700.0,0.01072316]
[1760283404644,1.36041465,112710.0,112700.0,0.01072316]
[1760283405320,1.46041464,112710.0,112700.0,0.01072316]
[1760283405536,1.35812465,112710.0,112700.0,0.01072316]
[1760283405768,0.17759665,112710.0,112700.0,0.01072316]
[1760283405981,0.00015011,112710.0,112700.0,0.01072316]
[1760283406194,0.17759665,112710.0,112700.0,0.01072316]
[1760283406418,1.02041465,112710.0,112700.0,0.01072316]
[1760283406628,1.36041465,112710.0,112700.0,0.01072316]
[1760283406842,1.36041465,112710.0,112650.0,0.0004]
[1760283407059,0.17752529,112660.0,112650.0,0.0004]
[1760283407490,0.17750954,112670.0,112650.0,0.0004]
[1760283407875,0.17752529,112660.0,112650.0,0.1808188]
[1760283408215,0.17752288,112690.0,112660.0,0.18640155]
[1760283408451,0.840528,112670.0,112650.0,0.0004]
[1760283408662,0.18636859,112680.0,112660.0,0.17752529]
[1760283409100,0.00015005,112690.0,112680.0,0.17749378]
[1760283409304,0.00015005,112690.0,112680.0,0.20764568]
[1760283409478,0.00015005,112690.0,112680.0,0.30564568]
[1760283410102,0.00015005,112690.0,112680.0,0.17749378]
[1760283410519,0.00015005,112690.0,112680.0,0.30564568]
[1760283413207,0.17743271,112720.0,112700.0,0.17745352]
[1760283413597,0.18630738,112740.0,112720.0,0.17742647]
[1760283413760,1.01789906,112760.0,112740.0,0.1773992]
[1760283414142,1.01791459,112750.0,112720.0,0.17742948]
[1760283414339,0.17738659,112750.0,112720.0,0.17742948]
[1760283414455,0.17738659,112750.0,112730.0,0.17741506]
[1760283414657,0.17739932,112740.0,112720.0,0.18630102]
[1760283415282,0.17739932,112740.0,112730.0,0.17741506]
[1760283415488,0.17739932,112740.0,112720.0,0.18630102]
[1760283415686,0.17739932,112740.0,112730.0,0.17741506]
[1760283415892,0.17751918,112760.0,112730.0,0.33152581]
[1760283416116,0.00015039,112760.0,112750.0,0.17738359]
[1760283416790,0.00015039,112760.0,112750.0,0.32262359]
[1760283416990,0.00015039,112760.0,112740.0,0.17739932]
[1760283417180,0.00015039,112760.0,112750.0,0.17738359]
[1760283417394,0.00015039,112760.0,112720.0,0.18630102]
[1760283417395,0.17740201,112740.0,112720.0,0.18630102]
[1760283417633,0.18625276,112750.0,112730.0,0.17741506]
[1760283417842,0.17739932,112740.0,112730.0,0.17741506]
[1760283418181,0.17751825,112760.0,112740.0,0.17739932]
[1760283418388,0.00015039,112760.0,112750.0,0.17738359]
[1760283418629,0.00015039,112760.0,112720.0,0.4]
[1760283418630,0.18638664,112760.0,112720.0,0.4]
[1760283418839,0.17738835,112750.0,112730.0,0.04724]
[1760283419042,0.17738835,112750.0,112740.0,0.17739932]
[1760283419248,0.17738835,112750.0,112730.0,0.22465457]
[1760283420019,0.17738835,112750.0,112740.0,0.17739932]
[1760283420267,0.18638664,112760.0,112740.0,0.17739932]
[1760283420548,0.18638664,112760.0,112750.0,0.27688359]
[1760283420549,0.00015039,112760.0,112750.0,0.27688359]
[1760283421251,0.00015039,112760.0,112750.0,0.17738359]
[1760283421469,0.00015039,112760.0,112750.0,0.27688359]
[1760283421699,0.17751825,112760.0,112730.0,0.73302532]
[1760283421931,0.17751825,112760.0,112750.0,0.17738359]
[1760283422439,0.17751825,112760.0,112740.0,0.27689585]
[1760283422654,0.17738359,112750.0,112740.0,0.17739585]
[1760283422864,0.17751825,112760.0,112740.0,0.17739585]
[1760283423103,0.18638664,112760.0,112740.0,0.17739585]
[1760283423344,0.18638664,112760.0,112720.0,0.1774301]
[1760283423345,0.16949506,112730.0,112720.0,0.1774301]
[1760283423591,0.17741506,112730.0,112710.0,0.11886362]
[1760283423845,0.17741506,112730.0,112710.0,0.17743966]
[1760283424462,0.17741506,112730.0,112720.0,0.1774308]
[1760283424700,0.18638664,112760.0,112730.0,0.17741506]
[1760283424928,1.01791389,112750.0,112730.0,0.17741506]
[1760283425160,0.17751825,112760.0,112750.0,0.17738359]
[1760283425386,0.00015039,112760.0,112750.0,0.17738359]
[1760283425620,0.00015039,112760.0,112730.0,0.33555581]
[1760283425621,0.18638664,112760.0,112730.0,0.32668506]
[1760283425840,0.17739449,112750.0,112740.0,0.17739932]
[1760283426074,1.01795442,112740.0,112710.0,0.27693966]
[1760283426338,0.17741506,112730.0,112720.0,0.1774308]
[1760283426567,0.18626366,112750.0,112720.0,0.34855442]
[1760283426793,0.17751843,112760.0,112740.0,0.17739932]
[1760283427019,0.00015039,112760.0,112750.0,0.17738359]
[1760283427682,0.00015039,112760.0,112750.0,0.27688359]
[1760283428147,0.00015039,112760.0,112750.0,0.17738359]
[1760283428359,0.00015039,112760.0,112750.0,0.27688359]
[1760283428596,0.00015039,112760.0,112750.0,0.30703549]
[1760283429034,1e-08,112760.0,112750.0,0.30703549]
[1760283429038,0.00825294,112800.0,112790.0,0.17732068]
[1760283429281,0.0001503,112800.0,112790.0,0.22709068]
[1760283429505,0.17732068,112790.0,112760.0,0.25725338]